[Event "EYCC Open-U16 2019"]
[Site "Bratislava"]
[Date "2019.08.08"]
[Round "7.31"]
[White "Torngren, Gustav"]
[Black "Bin-Suhayl, Ieysaa"]
[Result "1-0"]
[ECO "A05"]
[WhiteElo "2109"]
[BlackElo "2084"]
[Annotator "NA"]
[PlyCount "55"]
[EventDate "2019.08.02"]
[EventType "swiss"]
[EventCountry "SVK"]
[SourceTitle "playchess.com"]
[Source "ChessBase"]
[SourceQuality "1"]
[TimeControl "40/5400+30:1800+30"]

1. Nf3 {[%emt 0:00:00]} Nf6 {[%emt 0:00:00]} 2. c4 {[%emt 0:00:00]} c5 {[%emt 0:00:00]} 3. g3 {[%emt 0:00:00]} Nc6 {[%emt 0:00:00]} 4. Bg2 {[%emt 0:00:04]} d6 {[%emt 0:00:00]} 5. Nc3 {[%emt 0:03:20]} g6 {[%emt 0:00:00]} 6. O-O {[%emt 0:00:17]} Bg7 {[%emt 0:00:00]} 7. a3 {[%emt 0:00:38]} O-O {[%emt 0:00:06]} 8. Rb1 {[%emt 0:00:38]} d5 {[%emt 0:00:02]} 9. cxd5 {[%emt 0:02:11]} Nxd5 {[%emt 0:00:04]} 10. Nxd5 {[%emt 0:00:28]} Qxd5 {[%emt 0:00:01]} 11. d3 {[%emt 0:00:17]} b6 {[%emt 0:10:08]} 12. Nd2 {[%emt 0:02:08]} Qd7 {[%emt 0:00:23]} 13. Nc4 {[%emt 0:02:00]} Bb7 {[%emt 0:01:02]} 14. Be3 {[%emt 0:02:33]} Rfc8 {[%emt 0:07:12]} 15. b4 {[%emt 0:03:00]} b5 {[%emt 0:00:10]} 16. Nd2 {[%emt 0:01:07]} cxb4 {[%emt 0:00:18]} 17. axb4 {[%emt 0:01:05]} Bc3 {[%emt 0:15:25]} 18. Bc5 {[%emt 0:04:28]} a5 {[%emt 0:00:16]} 19. bxa5 {[%emt 0:00:45]} Rxa5 {[%emt 0:00:30]} 20. Be3 {[%emt 0:11:59]} b4 {[%emt 0:02:42]} 21. Nc4 {[%emt 0:07:47]} Ra2 {[%emt 0:02:04]} 22. Nb6 {[%emt 0:06:41]} Qe6 {[%emt 0:00:04]} 23. Bd5 {[%emt 0:06:46]} Qh3 {[%emt 0:00:04]} 24. Nxc8 {[%emt 0:00:35]} Ne5 {[%emt 0:02:14]} 25. Nxe7+ {[%emt 0:04:29]} Kf8 {[%emt 0:00:04]} 26. f3 {[%emt 0:01:03]} Kxe7 {[%emt 0:00:08]} 27. Bxb7 {[%emt 0:00:11]} Nxf3+ {[%emt 0:00:35]} 28. Bxf3 {[%emt 0:00:12]} 1-0

[Event "EYCC Open-U16 2019"]
[Site "Bratislava"]
[Date "2019.08.08"]
[Round "7.32"]
[White "Bettalli, Francesco"]
[Black "Minko, Dmitry"]
[Result "1/2-1/2"]
[ECO "D30"]
[WhiteElo "2095"]
[BlackElo "2061"]
[Annotator "NA"]
[PlyCount "49"]
[EventDate "2019.08.02"]
[EventType "swiss"]
[EventCountry "SVK"]
[SourceTitle "playchess.com"]
[Source "ChessBase"]
[SourceQuality "1"]
[TimeControl "40/5400+30:1800+30"]

1. d4 {[%emt 0:00:01]} d5 {[%emt 0:00:00]} 2. c4 {[%emt 0:00:04]} e6 {[%emt 0:00:00]} 3. Nf3 {[%emt 0:00:11]} Nf6 {[%emt 0:00:01]} 4. e3 {[%emt 0:00:19]} Be7 {[%emt 0:01:35]} 5. b3 {[%emt 0:00:26]} O-O {[%emt 0:00:43]} 6. Bb2 {[%emt 0:00:10]} b6 {[%emt 0:02:16]} 7. Bd3 {[%emt 0:00:11]} Bb7 {[%emt 0:03:04]} 8. Nbd2 {[%emt 0:00:08]} c5 {[%emt 0:05:57]} 9. O-O {[%emt 0:01:01]} Nbd7 {[%emt 0:02:54]} 10. Ne5 {[%emt 0:07:09]} cxd4 {[%emt 0:09:16]} 11. exd4 {[%emt 0:00:21]} dxc4 {[%emt 0:04:29]} 12. Ndxc4 {[%emt 0:00:19]} b5 {[%emt 0:03:07]} 13. Nxd7 {[%emt 0:01:36]} Nxd7 {[%emt 0:03:10]} 14. Qh5 {[%emt 0:01:34]} f5 {[%emt 0:01:16]} 15. Nd2 {[%emt 0:05:23]} a6 {[%emt 0:03:31]} 16. Qe2 {[%emt 0:00:24]} Rf6 {[%emt 0:03:00]} 17. Nf3 {[%emt 0:04:16]} Bd6 {[%emt 0:04:39]} 18. Ne5 {[%emt 0:07:24]} Nxe5 {[%emt 0:09:36]} 19. dxe5 {[%emt 0:00:52]} Rg6 {[%emt 0:00:08]} 20. f3 {[%emt 0:01:23]} Bc5+ {[%emt 0:00:08]} 21. Kh1 {[%emt 0:00:05]} Rh6 {[%emt 0:03:05]} 22. g3 {[%emt 0:00:07]} Qb6 {[%emt 0:03:54]} 23. Kg2 {[%emt 0:09:51]} g5 {[%emt 0:01:45]} 24. h3 {[%emt 0:02:05]} Rf8 {[%emt 0:08:15]} 25. Kh2 {[%emt 0:06:48]} 1/2-1/2

[Event "EYCC Open-U16 2019"]
[Site "Bratislava"]
[Date "2019.08.08"]
[Round "7.33"]
[White "Lomandong, Marc-Antoine"]
[Black "Kochavi, Ori"]
[Result "0-1"]
[ECO "A45"]
[WhiteElo "2073"]
[BlackElo "2153"]
[Annotator "NA"]
[PlyCount "72"]
[EventDate "2019.08.02"]
[EventType "swiss"]
[EventCountry "SVK"]
[SourceTitle "playchess.com"]
[Source "ChessBase"]
[SourceQuality "1"]
[TimeControl "40/5400+30:1800+30"]

1. d4 {[%emt 0:00:00]} Nf6 {[%emt 0:00:00]} 2. Bf4 {[%emt 0:00:00]} c5 {[%emt 0:07:08]} 3. e3 {[%emt 0:06:48]} Nd5 {[%emt 0:01:22]} 4. Bg3 {[%emt 0:10:55]} Qb6 {[%emt 0:00:05]} 5. Nc3 {[%emt 0:02:38]} Nxc3 {[%emt 0:00:14]} 6. bxc3 {[%emt 0:00:01]} e6 {[%emt 0:07:23]} 7. a4 {[%emt 0:23:32]} Nc6 {[%emt 0:16:02]} 8. a5 {[%emt 0:06:32]} Nxa5 {[%emt 0:01:16]} 9. Rb1 {[%emt 0:10:19]} Qc6 {[%emt 0:10:00]} 10. Nf3 {[%emt 0:04:52]} cxd4 {[%emt 0:16:15]} 11. Qxd4 {[%emt 0:01:40]} Qc5 {[%emt 0:01:13]} 12. Qd3 {[%emt 0:02:02]} a6 {[%emt 0:02:00]} 13. Be2 {[%emt 0:05:08]} Nc6 {[%emt 0:02:40]} 14. O-O {[%emt 0:04:09]} Be7 {[%emt 0:00:56]} 15. Nd2 {[%emt 0:00:37]} Ne5 {[%emt 0:10:19]} 16. Bxe5 {[%emt 0:03:31]} Qxe5 {[%emt 0:00:05]} 17. Nc4 {[%emt 0:00:02]} Qc7 {[%emt 0:00:08]} 18. Nb6 {[%emt 0:05:56]} Rb8 {[%emt 0:00:06]} 19. f4 {[%emt 0:00:03]} f5 {[%emt 0:05:31]} 20. Kh1 {[%emt 0:08:55]} Bc5 {[%emt 0:03:39]} 21. Nxc8 {[%emt 0:00:03]} Rxc8 {[%emt 0:00:06]} 22. e4 {[%emt 0:00:02]} O-O {[%emt 0:05:08]} 23. Bf3 {[%emt 0:00:10]} b5 {[%emt 0:00:31]} 24. exf5 {[%emt 0:00:34]} exf5 {[%emt 0:01:03]} 25. Bd5+ {[%emt 0:01:06]} Kh8 {[%emt 0:00:05]} 26. Rf3 {[%emt 0:00:02]} Rce8 {[%emt 0:01:02]} 27. Rbf1 {[%emt 0:00:08]} Rf6 {[%emt 0:00:40]} 28. Rh3 {[%emt 0:00:01]} h6 {[%emt 0:00:14]} 29. Rh5 {[%emt 0:00:31]} Re3 {[%emt 0:03:11]} 30. Qd1 {[%emt 0:00:01]} Rxc3 {[%emt 0:00:25]} 31. Bb3 {[%emt 0:01:20]} Qd6 {[%emt 0:01:05]} 32. Qa1 {[%emt 0:01:30]} Bb4 {[%emt 0:02:20]} 33. Rd1 {[%emt 0:02:40]} Qe7 {[%emt 0:01:15]} 34. Bd5 {[%emt 0:00:38]} Rxc2 {[%emt 0:01:01]} 35. Qb1 {[%emt 0:00:30]} Rd2 {[%emt 0:01:08]} 36. Rc1 {[%emt 0:00:15]} Rxd5 {[%emt 0:00:31]} 0-1

[Event "EYCC Open-U16 2019"]
[Site "Bratislava"]
[Date "2019.08.08"]
[Round "7.34"]
[White "Palczert, Botond"]
[Black "Novotny, Martin"]
[Result "1-0"]
[ECO "A58"]
[WhiteElo "2022"]
[BlackElo "2178"]
[Annotator "NA"]
[PlyCount "65"]
[EventDate "2019.08.02"]
[EventType "swiss"]
[EventCountry "SVK"]
[SourceTitle "playchess.com"]
[Source "ChessBase"]
[SourceQuality "1"]
[TimeControl "40/5400+30:1800+30"]

1. d4 {[%emt 0:00:00]} Nf6 {[%emt 0:00:00]} 2. c4 {[%emt 0:00:00]} c5 {[%emt 0:00:00]} 3. d5 {[%emt 0:00:00]} b5 {[%emt 0:00:00]} 4. cxb5 {[%emt 0:00:25]} a6 {[%emt 0:00:00]} 5. bxa6 {[%emt 0:00:28]} g6 {[%emt 0:00:02]} 6. Nc3 {[%emt 0:01:41]} Bg7 {[%emt 0:00:09]} 7. e4 {[%emt 0:00:36]} O-O {[%emt 0:00:19]} 8. e5 {[%emt 0:01:57]} Ne8 {[%emt 0:00:59]} 9. h4 {[%emt 0:01:12]} d6 {[%emt 0:09:55]} 10. e6 {[%emt 0:00:50]} fxe6 {[%emt 0:09:16]} 11. h5 {[%emt 0:01:14]} Nf6 {[%emt 0:27:55]} 12. hxg6 {[%emt 0:01:26]} Bxa6 {[%emt 0:06:20]} 13. gxh7+ {[%emt 0:07:26]} Kh8 {[%emt 0:00:11]} 14. Nh3 {[%emt 0:02:03]} Nxd5 {[%emt 0:08:37]} 15. Nxd5 {[%emt 0:03:41]} exd5 {[%emt 0:00:17]} 16. Qxd5 {[%emt 0:19:44]} Nd7 {[%emt 0:09:44]} 17. Ng5 {[%emt 0:05:48]} e6 {[%emt 0:09:21]} 18. Nxe6 {[%emt 0:07:38]} Re8 {[%emt 0:01:27]} 19. Bxa6 {[%emt 0:00:42]} Qa5+ {[%emt 0:02:01]} 20. Bd2 {[%emt 0:04:15]} Qxa6 {[%emt 0:00:04]} 21. O-O-O {[%emt 0:03:07]} Rxe6 {[%emt 0:04:59]} 22. Qxe6 {[%emt 0:01:12]} Rb8 {[%emt 0:01:44]} 23. Bc3 {[%emt 0:05:58]} Bxc3 {[%emt 0:01:49]} 24. bxc3 {[%emt 0:00:03]} Qa3+ {[%emt 0:01:53]} 25. Kd2 {[%emt 0:00:32]} Qb2+ {[%emt 0:01:03]} 26. Ke1 {[%emt 0:02:44]} Rf8 {[%emt 0:00:09]} 27. f3 {[%emt 0:09:21]} Nf6 {[%emt 0:01:09]} 28. Kf1 {[%emt 0:01:06]} Qxc3 {[%emt 0:00:32]} 29. Qxd6 {[%emt 0:03:53]} Re8 {[%emt 0:00:45]} 30. Rh6 {[%emt 0:03:46]} Nxh7 {[%emt 0:03:35]} 31. Rxh7+ {[%emt 0:01:36]} Kxh7 {[%emt 0:00:18]} 32. Qd7+ {[%emt 0:00:04]} Kh6 {[%emt 0:00:21]} 33. Rd6+ {[%emt 0:00:22]} 1-0

[Event "EYCC Open-U16 2019"]
[Site "Bratislava"]
[Date "2019.08.08"]
[Round "7.35"]
[White "Melaa, Sondre"]
[Black "Jirousek, Jan"]
[Result "1/2-1/2"]
[ECO "C10"]
[WhiteElo "2118"]
[BlackElo "1924"]
[Annotator "NA"]
[PlyCount "178"]
[EventDate "2019.08.02"]
[EventType "swiss"]
[EventCountry "SVK"]
[SourceTitle "playchess.com"]
[Source "ChessBase"]
[SourceQuality "1"]
[TimeControl "40/5400+30:1800+30"]

1. e4 {[%emt 0:00:00]} e6 {[%emt 0:00:00]} 2. d4 {[%emt 0:00:36]} d5 {[%emt 0:00:00]} 3. Nd2 {[%emt 0:00:29]} dxe4 {[%emt 0:01:24]} 4. Nxe4 {[%emt 0:00:19]} Nd7 {[%emt 0:00:11]} 5. Nf3 {[%emt 0:02:26]} Ngf6 {[%emt 0:00:13]} 6. Nxf6+ {[%emt 0:01:48]} Nxf6 {[%emt 0:00:17]} 7. Bd3 {[%emt 0:00:58]} Be7 {[%emt 0:01:16]} 8. O-O {[%emt 0:02:15]} O-O {[%emt 0:00:39]} 9. c3 {[%emt 0:06:20]} b6 {[%emt 0:06:36]} 10. Qe2 {[%emt 0:13:10]} Bb7 {[%emt 0:02:17]} 11. a4 {[%emt 0:04:08]} a5 {[%emt 0:07:10]} 12. Bf4 {[%emt 0:07:58]} Nd5 {[%emt 0:05:32]} 13. Bg3 {[%emt 0:12:35]} Qc8 {[%emt 0:06:31]} 14. Ne5 {[%emt 0:07:14]} Ba6 {[%emt 0:13:05]} 15. c4 {[%emt 0:07:15]} Nb4 {[%emt 0:05:28]} 16. Be4 {[%emt 0:02:02]} Bb7 {[%emt 0:01:09]} 17. Rad1 {[%emt 0:01:03]} Bxe4 {[%emt 0:06:24]} 18. Qxe4 {[%emt 0:00:17]} c6 {[%emt 0:06:02]} 19. b3 {[%emt 0:05:03]} Qb7 {[%emt 0:06:13]} 20. f4 {[%emt 0:04:30]} g6 {[%emt 0:04:36]} 21. Be1 {[%emt 0:01:35]} Rac8 {[%emt 0:02:06]} 22. Ng4 {[%emt 0:02:51]} Qc7 {[%emt 0:10:48]} 23. Bc3 {[%emt 0:02:38]} h5 {[%emt 0:01:46]} 24. Ne5 {[%emt 0:01:58]} Kh7 {[%emt 0:04:21]} 25. Rf3 {[%emt 0:00:50]} f5 {[%emt 0:02:00]} 26. Qe2 {[%emt 0:01:08]} Rf6 {[%emt 0:02:24]} 27. Re3 {[%emt 0:01:05]} Bd6 {[%emt 0:01:19]} 28. g3 {[%emt 0:02:02]} Bxe5 {[%emt 0:00:45]} 29. Rxe5 {[%emt 0:00:06]} Qd6 {[%emt 0:01:08]} 30. Re1 {[%emt 0:03:16]} Re8 {[%emt 0:00:37]} 31. Qd2 {[%emt 0:02:43]} Rd8 {[%emt 0:01:31]} 32. R1e2 {[%emt 0:02:22]} Na6 {[%emt 0:00:23]} 33. d5 {[%emt 0:01:11]} cxd5 {[%emt 0:00:47]} 34. cxd5 {[%emt 0:00:17]} Nc7 {[%emt 0:00:38]} 35. dxe6 {[%emt 0:01:38]} Rxe6 {[%emt 0:01:00]} 36. Rxe6 {[%emt 0:00:36]} Nxe6 {[%emt 0:00:09]} 37. Qe1 {[%emt 0:00:53]} Nd4 {[%emt 0:01:03]} 38. Re7+ {[%emt 0:00:34]} Kh6 {[%emt 0:00:17]} 39. Qe3 {[%emt 0:00:23]} Qc5 {[%emt 0:00:52]} 40. Kf2 {[%emt 0:00:00]} Qd6 {[%emt 0:00:00]} 41. Re8 {[%emt 0:06:08]} Nc6 {[%emt 0:14:08]} 42. Rxd8 {[%emt 0:03:43]} Qxd8 {[%emt 0:05:39]} 43. Qe6 {[%emt 0:00:55]} Nb4 {[%emt 0:02:16]} 44. Qf7 {[%emt 0:01:29]} h4 {[%emt 0:05:59]} 45. Qg7+ {[%emt 0:18:56]} Kh5 {[%emt 0:00:08]} 46. Qh7+ {[%emt 0:00:16]} Kg4 {[%emt 0:00:07]} 47. Qxg6+ {[%emt 0:00:31]} Kh3 {[%emt 0:00:07]} 48. gxh4 {[%emt 0:02:20]} Qxh4+ {[%emt 0:01:56]} 49. Qg3+ {[%emt 0:00:09]} Qxg3+ {[%emt 0:00:05]} 50. hxg3 {[%emt 0:00:04]} Nd3+ {[%emt 0:00:41]} 51. Kf3 {[%emt 0:00:32]} Nc5 {[%emt 0:00:46]} 52. Bd4 {[%emt 0:00:49]} Nxb3 {[%emt 0:00:19]} 53. Bxb6 {[%emt 0:00:31]} Nd2+ {[%emt 0:00:31]} 54. Kf2 {[%emt 0:00:35]} Nc4 {[%emt 0:01:28]} 55. Bd4 {[%emt 0:00:22]} Kg4 {[%emt 0:00:30]} 56. Ke2 {[%emt 0:00:39]} Kxg3 {[%emt 0:01:04]} 57. Kd3 {[%emt 0:00:20]} Nd6 {[%emt 0:00:54]} 58. Be5 {[%emt 0:00:50]} Ne4 {[%emt 0:00:57]} 59. Kc4 {[%emt 0:00:33]} Nd2+ {[%emt 0:00:13]} 60. Kb5 {[%emt 0:00:57]} Nb3 {[%emt 0:00:07]} 61. Kc4 {[%emt 0:00:28]} Nd2+ {[%emt 0:00:08]} 62. Kd5 {[%emt 0:00:14]} Nb3 {[%emt 0:01:06]} 63. Bc7 {[%emt 0:00:31]} Kf3 {[%emt 0:00:46]} 64. Kc4 {[%emt 0:00:55]} Nd2+ {[%emt 0:00:10]} 65. Kc3 {[%emt 0:00:33]} Ne4+ {[%emt 0:00:26]} 66. Kd4 {[%emt 0:00:09]} Nd2 {[%emt 0:00:26]} 67. Kd3 {[%emt 0:00:21]} Ne4 {[%emt 0:01:12]} 68. Kc4 {[%emt 0:00:11]} Nd2+ {[%emt 0:00:07]} 69. Kb5 {[%emt 0:00:24]} Nb3 {[%emt 0:00:07]} 70. Bd6 {[%emt 0:00:21]} Ke4 {[%emt 0:01:03]} 71. Kc4 {[%emt 0:00:19]} Nd2+ {[%emt 0:01:07]} 72. Kc3 {[%emt 0:00:09]} Kd5 {[%emt 0:01:05]} 73. Bc7 {[%emt 0:00:49]} Nc4 {[%emt 0:00:36]} 74. Bd8 {[%emt 0:00:49]} Kc5 {[%emt 0:00:21]} 75. Bf6 {[%emt 0:00:45]} Kd5 {[%emt 0:00:44]} 76. Bd8 {[%emt 0:00:35]} Kc5 {[%emt 0:00:20]} 77. Be7+ {[%emt 0:00:14]} Kd5 {[%emt 0:00:09]} 78. Bf6 {[%emt 0:00:13]} Nb6 {[%emt 0:00:40]} 79. Kb3 {[%emt 0:00:18]} Nc4 {[%emt 0:00:32]} 80. Bc3 {[%emt 0:00:39]} Kc5 {[%emt 0:00:23]} 81. Be1 {[%emt 0:00:22]} Kd5 {[%emt 0:00:39]} 82. Bf2 {[%emt 0:01:04]} Nd2+ {[%emt 0:00:22]} 83. Kc2 {[%emt 0:00:17]} Nc4 {[%emt 0:00:17]} 84. Kc3 {[%emt 0:00:09]} Nd6 {[%emt 0:00:25]} 85. Kd3 {[%emt 0:00:56]} Ne4 {[%emt 0:01:07]} 86. Bd4 {[%emt 0:00:18]} Nc5+ {[%emt 0:00:21]} 87. Bxc5 {[%emt 0:00:05]} Kxc5 {[%emt 0:00:06]} 88. Kc3 {[%emt 0:00:03]} Kd5 {[%emt 0:00:07]} 89. Kd3 {[%emt 0:00:04]} Kc5 {[%emt 0:00:08] Ke4} 1/2-1/2

[Event "EYCC Open-U16 2019"]
[Site "Bratislava"]
[Date "2019.08.08"]
[Round "7.36"]
[White "Iliaguev, Daniel"]
[Black "Sismeiro, Miguel"]
[Result "1/2-1/2"]
[ECO "D79"]
[WhiteElo "2053"]
[BlackElo "2103"]
[Annotator "NA"]
[PlyCount "41"]
[EventDate "2019.08.02"]
[EventType "swiss"]
[EventCountry "SVK"]
[SourceTitle "playchess.com"]
[Source "ChessBase"]
[SourceQuality "1"]
[TimeControl "40/5400+30:1800+30"]

1. c4 {[%emt 0:00:00]} Nf6 {[%emt 0:00:12]} 2. g3 {[%emt 0:00:37]} c6 {[%emt 0:01:37]} 3. Bg2 {[%emt 0:01:27]} d5 {[%emt 0:00:06]} 4. cxd5 {[%emt 0:04:00]} cxd5 {[%emt 0:03:03]} 5. Nf3 {[%emt 0:00:03]} g6 {[%emt 0:01:29]} 6. O-O {[%emt 0:00:13]} Bg7 {[%emt 0:00:02]} 7. d4 {[%emt 0:00:43]} O-O {[%emt 0:00:11]} 8. Nc3 {[%emt 0:00:15]} Ne4 {[%emt 0:00:15]} 9. Qb3 {[%emt 0:02:19]} Nxc3 {[%emt 0:06:19]} 10. bxc3 {[%emt 0:00:14]} Nc6 {[%emt 0:00:51]} 11. Nd2 {[%emt 0:02:11]} e6 {[%emt 0:12:19]} 12. e4 {[%emt 0:07:27]} Na5 {[%emt 0:07:41]} 13. Qc2 {[%emt 0:04:40]} b6 {[%emt 0:02:56]} 14. Re1 {[%emt 0:00:52]} Bb7 {[%emt 0:04:32]} 15. exd5 {[%emt 0:02:48]} exd5 {[%emt 0:07:25]} 16. Ba3 {[%emt 0:03:49]} Re8 {[%emt 0:00:50]} 17. Bb4 {[%emt 0:02:03]} Nc6 {[%emt 0:04:28]} 18. Ba3 {[%emt 0:02:41]} Na5 {[%emt 0:02:29]} 19. Bb4 {[%emt 0:00:39]} Nc6 {[%emt 0:01:09]} 20. Ba3 {[%emt 0:25:28]} Na5 {[%emt 0:13:29]} 21. Bb4 1/2-1/2

[Event "EYCC Open-U16 2019"]
[Site "Bratislava"]
[Date "2019.08.08"]
[Round "7.37"]
[White "Stankovic, Milos M"]
[Black "Neiman, Maks"]
[Result "1/2-1/2"]
[ECO "D01"]
[WhiteElo "2270"]
[BlackElo "1971"]
[Annotator "NA"]
[PlyCount "41"]
[EventDate "2019.08.02"]
[EventType "swiss"]
[EventCountry "SVK"]
[SourceTitle "playchess.com"]
[Source "ChessBase"]
[SourceQuality "1"]
[TimeControl "40/5400+30:1800+30"]

1. d4 {[%emt 0:00:00]} Nf6 {[%emt 0:00:00]} 2. Nc3 {[%emt 0:00:00]} d5 {[%emt 0:02:38]} 3. Bg5 {[%emt 0:00:13]} Bf5 {[%emt 0:05:13]} 4. Bxf6 {[%emt 0:01:51]} exf6 {[%emt 0:01:46]} 5. a3 {[%emt 0:02:50]} c6 {[%emt 0:04:18]} 6. f3 {[%emt 0:00:41]} Bd6 {[%emt 0:04:40]} 7. e4 {[%emt 0:00:55]} dxe4 {[%emt 0:03:58]} 8. fxe4 {[%emt 0:00:10]} Qe7 {[%emt 0:01:05]} 9. Bd3 {[%emt 0:01:43]} Bxe4 {[%emt 0:06:17]} 10. Nxe4 {[%emt 0:04:56]} f5 {[%emt 0:00:45]} 11. Qf3 {[%emt 0:09:27]} fxe4 {[%emt 0:03:43]} 12. Bxe4 {[%emt 0:08:42]} Nd7 {[%emt 0:16:34]} 13. O-O-O {[%emt 0:01:19]} O-O {[%emt 0:11:23]} 14. Nh3 {[%emt 0:02:30]} Nf6 {[%emt 0:06:05]} 15. Bd3 {[%emt 0:00:19]} Rfe8 {[%emt 0:02:36]} 16. Nf2 {[%emt 0:03:52]} Qe3+ {[%emt 0:04:59]} 17. Qxe3 {[%emt 0:00:38]} Rxe3 {[%emt 0:00:05]} 18. g3 {[%emt 0:00:44]} Rae8 {[%emt 0:02:22]} 19. Rhf1 {[%emt 0:03:55]} Bc7 {[%emt 0:03:29]} 20. c3 {[%emt 0:00:40]} R3e7 {[%emt 0:02:12]} 21. Kd2 {[%emt 0:00:34]} 1/2-1/2

[Event "EYCC Open-U16 2019"]
[Site "Bratislava"]
[Date "2019.08.08"]
[Round "7.38"]
[White "Vitenberg, Noam Aviv"]
[Black "Gzib, David"]
[Result "1-0"]
[ECO "A34"]
[WhiteElo "2300"]
[BlackElo "2021"]
[Annotator "NA"]
[PlyCount "53"]
[EventDate "2019.08.02"]
[EventType "swiss"]
[EventCountry "SVK"]
[SourceTitle "playchess.com"]
[Source "ChessBase"]
[SourceQuality "1"]
[TimeControl "40/5400+30:1800+30"]

1. c4 {[%emt 0:00:00]} c5 {[%emt 0:00:00]} 2. Nc3 {[%emt 0:00:14]} g6 {[%emt 0:00:32]} 3. e3 {[%emt 0:07:38]} Bg7 {[%emt 0:00:53]} 4. d4 {[%emt 0:01:44]} Nf6 {[%emt 0:01:05]} 5. d5 {[%emt 0:04:09]} d6 {[%emt 0:00:17]} 6. Bd3 {[%emt 0:01:53]} O-O {[%emt 0:02:25]} 7. e4 {[%emt 0:03:24]} Na6 {[%emt 0:10:10]} 8. Nge2 {[%emt 0:12:16]} Nc7 {[%emt 0:02:23]} 9. h3 {[%emt 0:13:45]} a6 {[%emt 0:11:05]} 10. a4 {[%emt 0:01:43]} b6 {[%emt 0:02:39]} 11. Rb1 {[%emt 0:09:42]} Rb8 {[%emt 0:04:13]} 12. Be3 {[%emt 0:05:54]} b5 {[%emt 0:11:17]} 13. axb5 {[%emt 0:14:18]} axb5 {[%emt 0:00:10]} 14. Nxb5 {[%emt 0:03:40]} Nxb5 {[%emt 0:04:13]} 15. cxb5 {[%emt 0:01:10]} c4 {[%emt 0:06:06]} 16. Bxc4 {[%emt 0:05:18]} Nxe4 {[%emt 0:00:13]} 17. O-O {[%emt 0:01:42]} Bd7 {[%emt 0:05:10]} 18. Nd4 {[%emt 0:01:17]} Qc7 {[%emt 0:12:21]} 19. Nc6 {[%emt 0:00:50]} Bxc6 {[%emt 0:00:10]} 20. bxc6 {[%emt 0:02:43]} Rb4 {[%emt 0:01:19]} 21. Qc2 {[%emt 0:00:47]} f5 {[%emt 0:04:44]} 22. b3 {[%emt 0:02:27]} Ra8 {[%emt 0:02:57]} 23. Rbe1 {[%emt 0:01:31]} Rbb8 {[%emt 0:04:43]} 24. Qd3 {[%emt 0:01:30]} Qa5 {[%emt 0:05:07]} 25. Bd4 {[%emt 0:01:19]} Bxd4 {[%emt 0:04:21]} 26. Qxd4 {[%emt 0:00:16]} Qd2 {[%emt 0:00:25]} 27. Rxe4 {[%emt 0:00:26]} 1-0

[Event "EYCC Open-U16 2019"]
[Site "Bratislava"]
[Date "2019.08.08"]
[Round "7.39"]
[White "Fuglestein, Sander"]
[Black "Bacrot, Alexandre"]
[Result "0-1"]
[ECO "D70"]
[WhiteElo "1997"]
[BlackElo "2265"]
[Annotator "NA"]
[PlyCount "90"]
[EventDate "2019.08.02"]
[EventType "swiss"]
[EventCountry "SVK"]
[SourceTitle "playchess.com"]
[Source "ChessBase"]
[SourceQuality "1"]
[TimeControl "40/5400+30:1800+30"]

1. d4 {[%emt 0:00:00]} Nf6 {[%emt 0:00:00]} 2. c4 {[%emt 0:00:00]} g6 {[%emt 0:00:00]} 3. Nf3 {[%emt 0:00:00]} Bg7 {[%emt 0:00:00]} 4. g3 {[%emt 0:00:00]} O-O {[%emt 0:00:11]} 5. Bg2 {[%emt 0:00:00]} d6 {[%emt 0:00:06]} 6. O-O {[%emt 0:00:06]} Bg4 {[%emt 0:00:15]} 7. h3 {[%emt 0:06:39]} Bxf3 {[%emt 0:00:07]} 8. Bxf3 {[%emt 0:00:08]} Nc6 {[%emt 0:00:08]} 9. Nc3 {[%emt 0:02:37]} Nd7 {[%emt 0:00:07]} 10. e3 {[%emt 0:06:36]} e5 {[%emt 0:00:06]} 11. d5 {[%emt 0:01:34]} Ne7 {[%emt 0:00:06]} 12. e4 {[%emt 0:06:09]} f5 {[%emt 0:00:53]} 13. Rb1 {[%emt 0:06:00]} a5 {[%emt 0:03:03]} 14. a3 {[%emt 0:04:24]} b6 {[%emt 0:01:06]} 15. b4 {[%emt 0:02:52]} Qc8 {[%emt 0:02:47]} 16. Qd3 {[%emt 0:11:22]} axb4 {[%emt 0:03:33]} 17. axb4 {[%emt 0:00:09]} Nf6 {[%emt 0:00:09]} 18. Kg2 {[%emt 0:09:05]} Qd7 {[%emt 0:01:28]} 19. c5 {[%emt 0:09:30]} dxc5 {[%emt 0:04:18]} 20. bxc5 {[%emt 0:00:13]} bxc5 {[%emt 0:00:42]} 21. Qc4 {[%emt 0:06:18]} Kh8 {[%emt 0:01:07]} 22. Be3 {[%emt 0:10:24]} fxe4 {[%emt 0:06:00]} 23. Bxe4 {[%emt 0:01:09]} Nxe4 {[%emt 0:14:21]} 24. Qxe4 {[%emt 0:01:37]} Ra5 {[%emt 0:00:19]} 25. Qc4 {[%emt 0:05:41]} c6 {[%emt 0:00:33]} 26. Rfd1 {[%emt 0:01:10]} cxd5 {[%emt 0:03:43]} 27. Nxd5 {[%emt 0:00:33]} Nf5 {[%emt 0:02:04]} 28. Bd2 {[%emt 0:03:02]} Nd6 {[%emt 0:00:49]} 29. Qc2 {[%emt 0:01:05]} Rb5 {[%emt 0:00:43]} 30. Be3 {[%emt 0:01:29]} Rxb1 {[%emt 0:03:30]} 31. Qxb1 {[%emt 0:00:30]} c4 {[%emt 0:13:24]} 32. Qb4 {[%emt 0:01:28]} Qf5 {[%emt 0:03:58]} 33. Nc3 {[%emt 0:03:40]} Qf3+ {[%emt 0:00:11]} 34. Kh2 {[%emt 0:00:18]} Nf5 {[%emt 0:01:20]} 35. Bc5 {[%emt 0:00:30]} Rc8 {[%emt 0:00:57]} 36. Qxc4 {[%emt 0:01:02]} Bf8 {[%emt 0:01:00]} 37. Rd3 {[%emt 0:00:32]} Qc6 {[%emt 0:00:14]} 38. Ne4 {[%emt 0:00:23]} Bxc5 {[%emt 0:02:12]} 39. Rc3 {[%emt 0:00:42]} Qa8 {[%emt 0:07:53]} 40. Nxc5 {[%emt 0:00:00]} Nd4 {[%emt 0:00:00]} 41. g4 {[%emt 0:11:13]} Rf8 {[%emt 0:02:07]} 42. Nd3 {[%emt 0:00:32]} Nf3+ {[%emt 0:06:08]} 43. Kg3 {[%emt 0:00:29]} Nd2 {[%emt 0:24:18]} 44. Qe6 {[%emt 0:07:47]} Rf3+ {[%emt 0:00:51]} 45. Kh4 {[%emt 0:01:28]} Rxh3+ {[%emt 0:00:09]} 0-1